bitfinex/quotes_ETHUSD_20250115
["timestamp","ask_amount","ask_price","bid_price","bid_amount"]
[1736927408235,0.03185233,3240.8,3239.9,0.7548]
[1736927408434,0.03185233,3240.8,3239.9,0.78566181]
[1736927408634,0.58185233,3240.8,3240.0,0.40522618]
[1736927409674,0.03185233,3240.8,3240.1,0.7548]
[1736927412740,3.03185233,3240.8,3240.1,0.7548]
[1736927412953,3.08539,3241.1,3240.1,0.7548]
[1736927413257,3.11724233,3241.1,3240.1,0.78565775]
[1736927413452,3.0,3241.0,3240.1,0.78565775]
[1736927413854,3.0,3241.0,3240.3,0.7548]
[1736927414083,0.03185233,3240.9,3240.3,0.7548]
[1736927414806,3.03185233,3241.0,3240.3,0.7548]
[1736927415301,0.63194806,3241.4,3240.3,0.78565704]
[1736927415474,3.03185233,3241.3,3240.4,0.7548]
[1736927415679,3.03185233,3241.3,3240.4,1.169748]
[1736927416376,3.03185233,3241.3,3240.5,0.7548]
[1736927416578,3.03185233,3241.3,3239.6,0.7548]
[1736927416579,3.0,3240.6,3239.6,0.7548]
[1736927416789,3.08661,3239.8,3239.6,0.7548]
[1736927416996,0.03185233,3239.7,3239.6,0.7548]
[1736927417301,0.03185233,3239.7,3239.5,1.28733995]
[1736927417508,0.03185233,3239.7,3239.3,0.7548]
[1736927417668,3.08661,3239.8,3239.3,0.7548]
[1736927417874,0.03185233,3239.7,3239.3,0.7548]
[1736927418313,3.0,3239.4,3239.1,0.18]
[1736927418613,3.03185233,3239.4,3239.1,0.18]
[1736927420215,3.11886233,3239.4,3239.1,0.18]
[1736927420421,0.03185233,3239.3,3239.1,0.18]
[1736927420629,3.0873,3239.1,3238.7,0.7984]
[1736927420785,3.03185233,3239.0,3238.7,0.7984]
[1736927420987,3.03185233,3239.0,3238.5,0.18]
[1736927423590,3.03185233,3239.0,3238.4,0.7984]
[1736927424817,3.0,3239.0,3238.4,0.7984]
[1736927425494,3.03185233,3239.0,3238.4,0.7984]
[1736927425816,3.0,3239.0,3238.4,0.7984]
[1736927426724,3.03185233,3239.0,3238.4,0.7984]
[1736927426928,3.0,3239.0,3238.4,0.7984]
[1736927427116,3.02813568,3239.0,3238.4,0.7984]
[1736927427428,2.99628335,3239.0,3238.4,0.7984]
[1736927428821,3.0874,3239.0,3238.4,0.7984]
[1736927429410,0.03185233,3238.9,3238.4,0.7984]
[1736927430354,3.0874,3239.0,3238.4,0.7984]
[1736927430712,0.03185233,3239.4,3238.4,0.7984]
[1736927430713,0.03185233,3238.9,3238.4,0.7984]
[1736927430914,3.0875,3238.9,3238.4,0.7984]
[1736927431139,0.03185233,3238.8,3238.4,0.7984]
[1736927431334,0.55,3239.2,3238.4,0.7984]
[1736927431536,3.08751,3238.9,3238.4,0.7984]
[1736927431747,0.03185233,3238.8,3238.4,0.7984]
[1736927432036,3.11944233,3238.8,3238.4,0.7984]
[1736927435445,0.03185233,3238.8,3238.4,0.7984]
[1736927435754,0.03185233,3238.9,3238.4,0.7984]
[1736927436129,0.55,3238.9,3238.4,0.7984]
[1736927436335,3.08767,3238.7,3238.4,0.7984]
[1736927436535,0.03185233,3238.6,3238.4,0.7984]
[1736927436742,0.03185233,3238.6,3238.1,1e-05]
[1736927436743,3.08784,3238.5,3238.1,1e-05]
[1736927436942,0.58185233,3238.4,3238.1,1e-05]
[1736927437259,3.08813,3238.2,3238.1,1e-05]
[1736927439347,0.55,3238.3,3238.1,1e-05]
[1736927439644,0.03185233,3238.2,3238.1,1e-05]
[1736927440235,3.08813,3238.2,3238.1,1e-05]
[1736927440434,0.03185233,3238.2,3238.1,1e-05]
[1736927441070,0.55,3238.3,3238.1,1e-05]
[1736927441373,0.03185233,3238.2,3238.1,1e-05]
[1736927441558,3.08778,3238.6,3238.1,1e-05]
[1736927441763,0.58185233,3238.5,3238.1,1e-05]
[1736927445951,0.58185233,3238.5,3238.2,0.8228]
[1736927446161,0.03185233,3238.5,3238.2,0.8228]
[1736927446485,0.03185233,3238.6,3238.2,0.8228]
[1736927450750,0.03185233,3238.7,3238.2,0.8228]
[1736927450949,0.03185233,3238.9,3238.2,0.8228]
[1736927452711,3.0,3238.8,3238.2,0.8228]
[1736927453410,0.03185233,3238.7,3238.2,0.8228]
[1736927453578,3.03185233,3238.8,3238.2,0.8228]
[1736927455314,3.11942233,3238.8,3238.2,0.8228]
[1736927455532,3.03185233,3238.7,3238.2,0.8228]
[1736927456013,0.03185233,3238.8,3238.2,0.8228]
[1736927459355,0.03185233,3238.8,3238.1,1e-05]
[1736927460061,0.03185233,3238.8,3238.2,0.7671]
[1736927460362,3.0,3238.7,3238.2,0.7671]
[1736927460558,3.03185233,3238.7,3238.2,0.7671]
[1736927462665,3.088,3238.4,3238.2,0.7671]
[1736927462839,0.03185233,3238.3,3238.2,0.7671]
[1736927463358,0.03185233,3238.3,3238.1,1e-05]
[1736927463562,3.66996233,3238.3,3238.1,1e-05]
[1736927463858,0.03185233,3238.2,3238.1,1e-05]
[1736927472383,2.93988977,3238.2,3238.1,1e-05]
[1736927473440,3.48988977,3238.2,3238.1,1e-05]
[1736927474606,7.23581975,3238.2,3238.1,1e-05]
[1736927474774,7.20396742,3238.2,3238.1,1e-05]
[1736927476805,4.29592998,3238.2,3238.1,1e-05]
[1736927477106,8.08228231,3238.2,3238.1,1e-05]
[1736927477312,9.54673744,3237.6,3237.5,0.16711]
[1736927477507,10.57686118,3237.6,3237.5,0.16711]
[1736927486211,11.36076118,3237.6,3237.5,0.16711]
[1736927487111,11.36076118,3237.6,3237.5,1e-05]
[1736927487311,11.76211316,3237.6,3237.5,1e-05]
[1736927491567,11.76211316,3237.6,3236.5,0.7723]
[1736927491568,3.55,3237.5,3236.5,0.7723]
[1736927491773,2.90803744,3236.6,3236.5,0.7723]
[1736927493372,1.3776429,3236.6,3236.5,0.7723]
[1736927496170,0.03185233,3236.9,3236.5,0.7723]
[1736927496339,0.03185233,3237.8,3236.7,0.7949]
[1736927496537,0.03185233,3237.8,3236.6,0.03089227]
[1736927496538,1.3776429,3237.1,3236.9,0.7949]
[1736927496908,1.3776429,3237.1,3237.0,0.9719]
[1736927497083,1.3776429,3237.1,3237.0,1.38110792]
[1736927497776,6.08844,3237.9,3237.1,0.7949]
[1736927497978,1.3776429,3237.2,3237.1,0.7949]
[1736927498955,0.03185233,3237.8,3237.1,0.7949]
[1736927499156,1.3776429,3237.2,3237.1,0.7949]
[1736927499370,2.90881041,3237.4,3237.1,0.9719]
[1736927499569,2.90881041,3237.4,3237.1,1.378025]
[1736927499773,2.90881041,3237.4,3237.2,0.7949]
[1736927500446,2.90881041,3237.7,3237.2,3.08905]
[1736927500652,2.90881041,3237.7,3237.4,3.08887]
[1736927500855,2.90881041,3237.7,3237.5,0.7949]
[1736927501050,2.90881041,3237.7,3237.6,0.7949]
[1736927506894,1.5894723,3238.5,3237.6,0.7949]
[1736927506895,2.90881041,3238.0,3237.6,0.7949]
[1736927514227,2.90881041,3238.0,3237.3,1.28733995]
[1736927514228,2.90881041,3237.7,3237.3,2.06403995]
[1736927515240,2.90881041,3237.7,3237.3,0.7767]
[1736927516890,2.90881041,3237.4,3236.9,1.28733995]
[1736927517109,2.90881041,3237.1,3236.9,1.28733995]
[1736927517690,0.03185233,3237.0,3236.9,1.28733995]
[1736927517890,0.03185233,3237.0,3236.5,0.9537]
[1736927520228,2.90881041,3237.1,3236.5,0.9537]
[1736927520426,0.03185233,3237.0,3236.5,0.9537]
[1736927521563,2.90881041,3237.1,3236.5,0.9537]
[1736927521751,0.7796,3238.0,3237.3,0.7767]
[1736927521957,2.90881041,3237.8,3237.3,0.80758619]
[1736927522131,2.90881041,3237.8,3237.3,3.86559]
[1736927523169,2.90881041,3237.8,3237.4,3.08888]
[1736927523485,2.90881041,3237.8,3237.3,0.7767]
[1736927527481,0.03185233,3237.7,3237.3,0.7767]
[1736927527978,2.90881041,3237.8,3237.3,0.7767]
[1736927528178,0.03185233,3237.7,3237.3,0.7767]
[1736927528769,2.90881041,3237.8,3237.3,0.7767]
[1736927531455,0.03185233,3237.7,3237.1,3.26812]
[1736927532185,0.8281,3238.6,3237.5,0.8086]
[1736927532408,0.8281,3238.9,3237.7,0.8086]
[1736927532563,2.90881041,3239.0,3237.9,0.8086]
[1736927532750,1.63906335,3239.2,3238.5,0.8086]
[1736927533083,0.80158157,3239.2,3238.8,3.08754]
[1736927533292,2.90881041,3239.6,3238.9,0.179]
[1736927533483,2.90881041,3239.0,3238.8,0.03087193]
[1736927533648,3.8281,3238.9,3238.8,0.03087193]
[1736927533851,3.8281,3238.9,3238.0,2.852614]
[1736927534046,2.90881041,3238.1,3238.0,2.852614]
[1736927534268,2.90881041,3238.1,3237.9,1.28733995]
[1736927534478,3.19969145,3238.1,3238.0,1.28733995]
[1736927534696,0.8281,3238.5,3238.0,1.28733995]
[1736927535018,2.90881041,3238.6,3238.0,4.40649143]
[1736927535220,2.90881041,3238.6,3238.0,3.11915148]
[1736927535426,2.90881041,3238.6,3238.1,0.8086]
[1736927535741,2.90881041,3238.9,3238.1,0.83947718]
[1736927536144,2.90881041,3238.9,3238.1,0.8086]
[1736927536304,2.90881041,3238.3,3238.2,2.67258373]
[1736927536512,0.8281,3238.5,3238.2,2.67258373]
[1736927536684,2.90881041,3238.6,3238.2,2.67258373]
[1736927536884,2.90881041,3238.9,3238.4,3.89649]
[1736927537240,2.90881041,3238.9,3238.5,0.03087552]
[1736927537522,0.8281,3239.5,3238.5,3.08782]
[1736927537685,2.90881041,3239.0,3238.5,0.602612]
[1736927537885,2.90881041,3239.0,3238.7,3.08762]
[1736927538126,2.90881041,3239.0,3238.5,0.179]
[1736927538345,0.8281,3239.5,3238.5,0.179]
[1736927538346,2.90881041,3238.6,3238.5,0.179]
[1736927538822,2.90881041,3238.6,3238.2,1.28733995]
[1736927539121,0.8281,3238.8,3238.2,1.28733995]
[1736927539122,2.90881041,3238.3,3238.2,1.28733995]
[1736927539289,10.42780168,3238.3,3237.7,0.179]
[1736927539489,2.90881041,3237.8,3237.7,0.179]
[1736927539707,2.90881041,3238.1,3237.7,0.179]
[1736927540830,2.90881041,3238.1,3237.8,0.8086]
[1736927541657,2.90881041,3238.4,3237.9,0.03088167]
[1736927541839,2.90881041,3238.4,3238.0,3.08827]
[1736927542750,2.90881041,3238.7,3238.2,3.0881]
[1736927542921,2.90881041,3238.7,3238.4,0.8086]
[1736927543285,0.03185233,3238.6,3237.7,2.27493995]
[1736927543560,2.90881041,3238.4,3237.8,0.179]
[1736927543760,3.26546,3240.0,3237.9,0.03087939]
[1736927543761,2.90881041,3238.7,3237.9,0.03087939]
[1736927543961,2.90881041,3238.7,3238.3,3.08801]
[1736927544277,2.90881041,3238.4,3238.0,0.7594]
[1736927544459,0.03185233,3238.6,3238.0,0.7594]
[1736927544460,2.90881041,3238.1,3238.0,1.28733995]
[1736927544965,2.90881041,3238.4,3238.0,1.28733995]
[1736927545345,2.90881041,3238.4,3237.8,3.08849]
[1736927545537,2.90881041,3238.4,3237.8,0.43356844]
[1736927545743,2.90881041,3238.4,3237.7,0.179]
[1736927545944,3.87267,3238.8,3237.7,0.179]
[1736927545945,2.90881041,3238.1,3237.7,0.179]
[1736927546163,2.90881041,3237.8,3237.7,0.179]
[1736927546362,2.90881041,3237.8,3237.7,1.46633995]
[1736927546565,2.90881041,3237.8,3237.7,1.28733995]
[1736927547228,2.90881041,3237.8,3237.4,0.179]
[1736927547430,0.03185233,3237.7,3237.2,1.28733995]
[1736927547744,2.90881041,3237.5,3237.2,1.28733995]
[1736927548355,2.90881041,3237.5,3237.0,2.22573995]
[1736927548663,2.90881041,3237.5,3237.1,0.179]
[1736927549240,2.90881041,3237.5,3237.0,0.7594]
[1736927549446,2.90881041,3237.5,3236.8,1.28733995]
[1736927549447,3.20287668,3237.5,3236.8,1.46633995]
[1736927549663,2.90881041,3237.5,3236.9,0.03088954]
[1736927549873,2.90881041,3237.5,3236.9,0.179]
[1736927550084,2.90881041,3237.5,3237.0,0.03088954]
[1736927550393,2.90881041,3237.5,3237.0,3.12010954]
[1736927550713,2.90881041,3237.5,3237.0,3.08922]
[1736927551707,2.90881041,3237.5,3236.9,0.179]
[1736927552484,2.90881041,3237.8,3237.1,3.08916]
[1736927552820,2.90881041,3237.8,3237.2,0.03088676]
[1736927553115,2.90881041,3237.8,3237.2,3.08904]
[1736927554288,2.90881041,3238.1,3237.5,0.7891]
[1736927554721,2.90881041,3237.8,3237.5,0.7891]
[1736927554920,2.90881041,3237.8,3237.1,0.7891]
[1736927554921,3.20287668,3237.8,3237.1,0.7891]
[1736927555081,2.90881041,3237.8,3237.1,0.7891]
[1736927555581,2.90881041,3237.8,3237.1,2.08329822]
[1736927556360,2.90881041,3238.3,3237.2,1.06995266]
[1736927556361,2.90881041,3237.5,3237.2,1.06995266]
[1736927557209,2.90881041,3237.5,3237.1,0.7891]
[1736927560099,2.90881041,3237.5,3237.1,0.9721]
[1736927560397,2.90881041,3237.8,3237.1,1.5608778]
[1736927561199,2.90881041,3237.8,3237.1,0.9721]
[1736927563505,0.03185233,3237.7,3237.1,0.9721]
[1736927565319,2.90881041,3237.2,3236.8,1.29419822]
[1736927565514,3.69431041,3237.2,3236.8,1.29419822]
[1736927565751,2.90881041,3237.5,3236.9,0.7891]
[1736927567636,2.94066274,3237.5,3236.9,0.7891]
[1736927568021,2.90881041,3237.5,3236.9,0.7891]
[1736927569331,2.90881041,3237.5,3237.0,0.0308887]
[1736927569661,2.90881041,3237.5,3236.9,0.7891]
[1736927569966,2.90881041,3237.5,3237.0,0.0308887]
[1736927570140,2.90881041,3237.8,3237.0,3.1201587]
[1736927570356,2.90881041,3237.8,3237.1,0.8094]
[1736927570665,2.90881041,3237.8,3237.1,3.4851958]
[1736927571458,2.90881041,3237.8,3237.1,3.51608267]
[1736927571668,2.90881041,3237.8,3237.2,1.86027341]
[1736927572341,2.90881041,3237.8,3237.3,2.67566742]
[1736927573145,2.90881041,3237.8,3237.2,0.78995509]
[1736927573346,2.90881041,3237.8,3237.1,2.10359822]
[1736927573544,2.90509273,3237.8,3237.1,2.10359822]
[1736927573975,2.90509273,3237.8,3237.2,1.07034466]
[1736927574157,2.90509273,3237.8,3237.3,0.183]
[1736927574666,2.90881041,3237.5,3237.3,0.183]
[1736927576160,3.28100668,3237.5,3236.8,1.29419822]
[1736927576362,2.90881041,3237.2,3236.9,0.183]
[1736927578037,2.90881041,3237.2,3236.6,1.29419822]
[1736927578238,0.03185233,3237.1,3236.7,0.183]
[1736927578889,2.90881041,3237.2,3236.7,0.183]
[1736927579051,2.90881041,3237.2,3236.7,0.41165982]
[1736927579358,2.90881041,3237.5,3236.8,0.03089286]
[1736927579540,2.90881041,3237.5,3236.9,0.8094]
[1736927580378,2.90881041,3237.8,3237.0,0.03088904]
[1736927580532,2.94066274,3237.8,3237.0,0.03088904]
[1736927580986,2.94066274,3237.8,3237.0,0.03088694]
[1736927581277,2.90881041,3237.8,3237.2,3.89847]
[1736927581439,2.90881041,3237.8,3237.2,0.8094]
[1736927582038,2.94066274,3237.8,3237.2,0.8094]
[1736927582239,2.94066274,3237.8,3236.9,2.10359822]
[1736927582240,2.90881041,3237.5,3236.9,2.10359822]
[1736927582880,2.90881041,3237.5,3237.0,1.07097341]
[1736927583039,2.90881041,3237.5,3237.1,0.19112633]
[1736927583768,2.90881041,3237.5,3236.9,0.84028993]
[1736927583977,2.90881041,3237.5,3236.9,0.8094]
[1736927584155,2.90881041,3237.2,3237.0,1.60710556]
[1736927584750,2.90881041,3237.2,3236.7,1.47719822]
[1736927584952,2.90881041,3237.2,3236.7,1.29419822]
[1736927585744,2.90881041,3237.2,3236.8,2.67927343]
[1736927585990,3.70871041,3237.5,3236.8,2.67927343]
[1736927586157,2.90881041,3237.2,3236.8,2.67927343]
[1736927586558,2.94066274,3237.2,3236.6,2.27589822]
[1736927586754,6.02976274,3237.2,3236.6,2.27589822]
[1736927587597,6.02976274,3237.2,3236.7,2.67921901]
[1736927587886,2.94066274,3237.2,3236.7,2.67921901]
[1736927588184,0.03185233,3237.1,3236.8,1.0716876]
[1736927588481,2.90881041,3237.2,3236.8,1.0716876]
[1736927588985,2.90881041,3237.2,3236.6,2.09589822]
[1736927589183,0.7999,3237.1,3236.7,0.42171955]
[1736927589571,0.7999,3237.1,3236.7,3.32385903]
[1736927589886,0.7999,3237.1,3236.7,4.39581987]
[1736927590383,0.83175233,3237.1,3236.8,2.6799021]
[1736927590684,0.7999,3237.1,3236.8,2.6799021]
[1736927590982,0.7999,3237.1,3236.9,1.07196084]
[1736927591183,0.83175233,3237.1,3236.9,1.07196084]
[1736927591487,0.7999,3237.1,3236.9,1.07196084]
[1736927591690,0.03185233,3237.0,3236.9,1.07196084]
[1736927591857,0.03185233,3237.0,3236.7,1.29419822]
[1736927592060,0.7999,3237.1,3236.7,1.29419822]
[1736927592386,2.90881041,3237.2,3236.7,1.71591777]
[1736927592556,0.7999,3237.4,3236.7,1.29419822]
[1736927592557,2.90881041,3236.9,3236.7,1.29419822]
[1736927592763,2.90881041,3236.9,3236.8,2.68143455]
[1736927592985,0.7999,3238.1,3236.8,3.48313455]
[1736927593324,2.90881041,3237.1,3236.5,0.9817]
[1736927593597,0.03185233,3237.0,3236.5,0.9817]
[1736927594851,2.90881041,3236.8,3236.5,0.18]
[1736927595249,0.03185233,3237.0,3236.6,3.97909452]
[1736927595452,2.90881041,3237.2,3236.7,0.8017]
[1736927595999,2.90881041,3237.2,3236.7,3.48348403]
[1736927596869,2.90881041,3237.2,3236.8,2.68178403]
[1736927597586,2.90881041,3237.2,3236.8,1.07271361]
[1736927598218,2.90881041,3237.2,3236.7,0.8017]
[1736927598898,2.90881041,3237.2,3236.7,1.09065165]
[1736927599465,2.90881041,3237.2,3236.8,2.68075548]
[1736927600172,2.90881041,3237.2,3236.9,1.07230219]
[1736927601024,2.90881041,3237.2,3236.7,2.38796214]
[1736927601559,2.90881041,3237.2,3236.8,2.68082618]
[1736927601794,2.90881041,3237.2,3236.9,0.50687883]
[1736927602212,2.90881041,3237.5,3236.9,1.5792093]
[1736927602367,2.90881041,3237.8,3237.0,0.8017]
[1736927602906,2.90881041,3237.8,3237.1,1.29731049]
[1736927603107,2.90881041,3237.8,3237.2,0.88701596]
[1736927603706,2.90881041,3237.8,3237.3,2.680696]
[1736927604499,2.90881041,3237.8,3237.5,0.8017]
[1736927607310,0.03185233,3237.7,3237.3,1.29731049]
[1736927607516,2.90881041,3237.4,3237.3,1.29731049]
[1736927607965,2.90881041,3237.4,3237.2,1.29731049]
[1736927608315,2.94066274,3237.4,3237.2,1.29731049]
[1736927608924,2.94066274,3237.4,3236.9,1.29731049]
[1736927609128,2.90881041,3237.1,3236.9,1.29731049]
[1736927609486,2.90881041,3237.1,3237.0,1.60856395]
[1736927609686,2.90881041,3237.1,3237.0,2.68093992]
[1736927610423,2.90881041,3237.4,3237.0,1.07237597]
[1736927610994,2.90881041,3237.4,3236.8,2.27901049]
[1736927611209,2.90881041,3237.4,3236.8,3.03936528]
[1736927611739,2.90881041,3237.1,3236.9,2.68098523]
[1736927612036,0.03185233,3237.0,3236.9,2.68098523]
[1736927612597,0.03185233,3237.0,3236.6,1.47631049]
[1736927613390,0.03185233,3237.0,3236.6,1.29731049]
[1736927613607,0.03185233,3237.0,3236.7,1.07243381]
[1736927614360,0.03185233,3237.0,3236.5,0.8017]
[1736927614926,0.03185233,3237.0,3236.6,2.68076512]
[1736927615814,0.03185233,3237.0,3236.5,0.8017]
[1736927616015,2.90881041,3236.8,3236.4,1.47631049]
[1736927616444,0.03185233,3236.7,3236.4,1.29731049]
[1736927616631,0.03185233,3236.7,3236.5,2.68065165]
[1736927617516,0.03185233,3236.7,3236.3,1.29731049]
[1736927617862,2.90881041,3236.5,3236.3,1.29731049]
[1736927618563,0.03185233,3236.4,3236.0,2.28291049]
[1736927619517,0.03185233,3236.4,3236.1,1.07230653]
[1736927620317,0.03185233,3236.4,3236.0,0.9856]
[1736927625774,0.03185233,3236.4,3236.0,0.179]
[1736927625974,2.90881041,3236.2,3235.7,1.29731049]
[1736927626166,3.66386075,3236.4,3235.7,1.29731049]
[1736927626167,3.70821041,3235.8,3235.7,1.29731049]
[1736927626337,3.74006274,3235.8,3235.7,1.29731049]
[1736927626675,3.70821041,3235.8,3235.7,1.29731049]
[1736927627146,3.70821041,3235.8,3235.3,0.8066]
[1736927627362,0.03185233,3235.7,3235.3,0.8066]
[1736927627862,0.03185233,3235.7,3235.2,0.179]
[1736927628074,0.03185233,3235.7,3235.2,0.29039558]
[1736927628274,0.03185233,3235.7,3235.1,1.60664533]
[1736927628776,2.90881041,3235.4,3235.1,1.60664533]
[1736927629542,2.90881041,3235.4,3234.9,0.8229]
[1736927629737,2.94066274,3235.4,3234.9,1.0019]
[1736927630164,2.94066274,3235.4,3234.9,0.179]
[1736927630557,2.90881041,3235.4,3234.9,0.179]
[1736927633374,2.90881041,3235.7,3235.0,0.03091004]
[1736927633549,2.90881041,3235.7,3235.1,0.8229]
[1736927634056,0.03185233,3235.6,3235.1,0.8229]
[1736927634253,2.94066274,3235.7,3235.0,0.330128]
[1736927634586,2.94066274,3235.7,3235.0,0.7688]
[1736927634788,0.03185233,3235.6,3235.0,0.7688]
[1736927636079,2.90881041,3235.7,3235.0,3.89086833]
[1736927637384,2.90881041,3235.7,3235.0,3.85996]
[1736927639478,0.8209,3236.0,3235.1,0.03090731]
[1736927639679,0.8209,3236.3,3235.5,3.09069]
[1736927639880,2.90881041,3236.1,3235.2,0.7688]
[1736927640087,3.72971041,3235.8,3235.2,0.7688]
[1736927640413,0.03185233,3235.7,3235.3,0.177]
[1736927640625,3.72971041,3235.8,3235.3,0.177]
[1736927641223,3.72971041,3236.1,3235.3,0.177]
[1736927641368,0.8209,3236.1,3235.5,3.09068]
[1736927641570,3.08978,3236.5,3235.6,0.7688]
[1736927641571,2.90881041,3236.3,3235.6,0.7688]
[1736927641891,2.90881041,3236.3,3235.7,0.03090138]
[1736927642201,2.90881041,3236.3,3235.6,0.03090139]
[1736927642388,2.90881041,3236.3,3235.7,3.09051]
[1736927642587,2.90881041,3236.3,3235.8,0.31214114]
[1736927642764,2.90881041,3236.3,3235.5,3.1215814]
[1736927643604,2.90881041,3236.3,3235.5,3.09068]
[1736927644102,2.90881041,3236.3,3235.5,3.12158142]
[1736927644474,3.08966,3236.6,3235.6,0.7766]
[1736927644685,3.08966,3236.6,3235.7,0.03090142]
[1736927644900,2.90881041,3236.5,3235.8,0.38980614]
[1736927645376,2.90881041,3236.5,3235.9,0.03090143]
[1736927645576,2.90881041,3236.5,3235.6,3.0906]
[1736927646101,2.90881041,3236.3,3235.6,3.0906]
[1736927647281,2.90881041,3236.3,3235.8,0.7766]
[1736927647490,2.90881041,3236.6,3235.8,3.86697]
[1736927647678,2.90881041,3236.6,3235.9,0.38978712]
[1736927648207,0.03185233,3236.5,3235.8,0.7766]
[1736927648401,2.90881041,3236.3,3235.8,0.7766]
[1736927649415,2.90881041,3236.0,3235.5,0.7766]
[1736927649708,2.90881041,3235.7,3235.5,0.177]
[1736927649921,2.90881041,3235.7,3235.4,0.177]
[1736927650126,3.66881041,3235.7,3235.4,0.177]
[1736927652444,3.70066274,3235.7,3235.4,0.177]
[1736927653627,3.66881041,3235.7,3235.4,0.177]
[1736927653925,4.03887668,3235.7,3235.4,0.177]
[1736927655428,3.66881041,3235.7,3235.4,0.177]
[1736927657592,0.02042133,3235.6,3235.4,0.177]
[1736927658195,3.66881041,3235.7,3235.4,0.177]
[1736927659425,0.02042133,3235.6,3235.4,0.177]
[1736927661021,3.66881041,3235.7,3235.4,0.177]
[1736927662367,3.66881041,3235.7,3235.3,0.177]
[1736927662667,0.02042133,3235.6,3235.3,0.177]
[1736927663337,3.66881041,3235.7,3235.3,0.177]
[1736927663537,0.02042133,3235.6,3235.3,0.177]
[1736927664147,0.02042133,3235.6,3235.2,0.177]
[1736927664753,2.90881041,3235.4,3234.9,2.07391049]
[1736927665067,0.02042133,3235.3,3234.9,2.07391049]
[1736927665225,0.02042133,3235.3,3235.0,0.177]
[1736927665426,0.02042133,3235.3,3235.0,1.2490705]
[1736927665658,2.90881041,3235.4,3235.0,1.2490705]
[1736927666227,2.90881041,3235.4,3235.0,0.177]
[1736927666428,0.02042133,3235.3,3235.0,0.177]
[1736927667531,0.02042133,3235.3,3235.1,0.177]
[1736927668063,2.90881041,3235.4,3235.1,0.177]
[1736927669571,0.02042133,3235.3,3234.7,5.20754049]
[1736927669771,0.02042133,3235.3,3235.1,0.177]
[1736927670078,2.90881041,3235.4,3235.1,0.177]
[1736927670235,0.02042133,3235.3,3235.1,0.177]
[1736927670435,0.02042133,3235.3,3234.8,1.29731049]
[1736927670635,0.02042133,3235.3,3234.9,0.177]
[1736927671042,2.90881041,3235.4,3235.0,1.07234281]
[1736927671278,0.02042133,3235.3,3235.0,1.07234281]
[1736927672287,0.02042133,3235.3,3234.9,0.177]
[1736927675783,2.90881041,3235.4,3234.9,0.177]
[1736927675950,2.90881041,3235.4,3234.9,0.40631105]
[1736927676292,3.66881041,3235.7,3235.0,1.07219924]
[1736927676457,0.02042133,3235.6,3235.0,1.07219924]
[1736927676891,0.02042133,3235.6,3235.1,1.07219924]
[1736927677603,0.02042133,3235.6,3234.9,1.70362154]
[1736927677780,2.90881041,3235.4,3235.0,0.47949815]
[1736927678101,0.02042133,3235.3,3234.9,1.70362154]
[1736927678288,0.02042133,3235.3,3235.0,1.07217427]
[1736927678591,0.02042133,3235.3,3235.1,0.177]
[1736927678794,0.76,3235.7,3235.1,0.177]
[1736927678993,3.66881041,3235.7,3235.1,0.177]
[1736927679200,0.76,3235.7,3235.1,0.52675911]
[1736927679492,3.66881041,3235.7,3235.1,0.52675911]
[1736927679694,3.66881041,3235.7,3235.2,1.07209346]
[1736927680000,2.90881041,3235.7,3235.2,1.84889346]
[1736927680667,2.90881041,3236.0,3235.3,3.09089]
[1736927680997,2.90881041,3236.0,3235.5,0.7768]
[1736927681403,0.02042133,3235.9,3235.5,0.7768]
[1736927681768,0.02042133,3235.9,3235.4,1.84880503]
[1736927682605,0.02042133,3235.9,3235.4,0.7768]
[1736927682801,2.90881041,3236.0,3235.4,0.7768]
[1736927683002,2.90881041,3236.0,3235.5,0.386766]
[1736927683187,0.02042133,3236.2,3235.4,0.7768]
[1736927683388,0.02042133,3236.2,3235.6,3.09061]
[1736927684100,0.02042133,3236.2,3235.4,3.86759]
[1736927684405,2.90881041,3236.0,3235.7,1.07185733]
[1736927684981,0.02042133,3235.9,3235.4,2.07411049]
[1736927685198,0.02042133,3235.9,3235.5,0.20741105]
[1736927685395,0.02042133,3235.9,3235.6,0.177]
[1736927688411,2.90881041,3236.0,3235.7,0.177]
[1736927689682,0.02042133,3236.2,3235.7,0.177]
[1736927689882,3.08997,3236.3,3235.7,0.177]
[1736927689883,2.90881041,3236.3,3235.7,0.177]
[1736927690307,2.90881041,3236.6,3235.8,0.82610367]
[1736927690465,2.90881041,3236.6,3235.8,1.2354706]
[1736927690971,0.02042133,3236.5,3235.9,1.07195726]
[1736927691708,2.90881041,3236.6,3235.8,1.2354706]
[1736927692012,0.02042133,3236.5,3235.8,1.20457037]
[1736927692710,0.02042133,3236.5,3235.9,1.60792304]
[1736927692909,0.02042133,3236.5,3236.0,0.41098039]
[1736927693609,0.7688,3236.2,3235.7,1.29731049]
[1736927693796,0.7688,3236.2,3235.9,0.177]
[1736927694000,0.02042133,3236.2,3235.9,0.177]
[1736927694392,0.02042133,3236.2,3235.8,1.07211827]
[1736927694573,0.02042133,3236.2,3235.9,0.177]
[1736927694778,2.90881041,3236.3,3235.9,0.177]
[1736927695509,2.90881041,3236.3,3236.0,0.7952]
[1736927695810,0.7688,3236.6,3236.0,0.7952]
[1736927695811,2.90881041,3236.6,3236.0,0.7952]
[1736927696028,0.02042133,3236.5,3236.0,0.7952]
[1736927696189,0.02042133,3236.5,3236.0,1.201462]
[1736927697319,2.90881041,3236.6,3236.0,1.201462]
[1736927700403,0.7688,3236.9,3235.9,0.177]
[1736927700404,2.90881041,3236.9,3236.1,0.03089826]
[1736927700605,2.90881041,3236.9,3236.2,0.7952]
[1736927700810,2.90881041,3236.9,3236.3,0.03089623]
[1736927701017,2.90881041,3237.2,3236.3,0.03089623]
[1736927701196,2.90881041,3237.4,3236.4,3.08976]
[1736927701399,2.90881041,3237.4,3236.1,2.6783929]
[1736927701400,2.90881041,3237.4,3236.5,4.22790811]
[1736927701733,2.90881041,3237.4,3236.7,0.7952]
[1736927701945,2.90881041,3237.4,3236.8,0.176]
[1736927702235,3.58401635,3238.2,3236.8,0.176]
[1736927702236,0.7688,3238.0,3237.0,0.7952]
[1736927702439,0.7688,3238.0,3237.0,3.88445]
[1736927702440,2.90881041,3237.8,3237.0,3.88445]
[1736927702590,2.90881041,3237.5,3237.0,0.7952]
[1736927703943,2.90881041,3237.2,3237.0,0.176]